fUSD/lending_fUSD_20240916
["ID","MTS","AMOUNT","RATE_DAILY","PERIOD"]
[338332801,1726505438171,-500.0,0.000137,2]
[338332802,1726505438180,-500.0,0.000137,2]
[338332803,1726505438190,-504.77,0.000137,2]
[338332804,1726505438200,-500.0,0.000137,2]
[338332806,1726505438211,-500.0,0.000137,2]
[338332808,1726505438221,-160.73,0.000137,2]
[338332810,1726505438230,-500.0,0.000137,2]
[338332811,1726505438239,-500.0,0.000137,2]
[338332812,1726505438248,-500.0,0.000137,2]
[338332813,1726505438257,-500.0,0.000137,2]
[338332814,1726505438266,-500.0,0.000137,2]
[338332815,1726505438276,-500.0,0.000137,2]
[338332816,1726505438285,-500.0,0.000137,2]
[338332817,1726505438295,-500.0,0.000137,2]
[338332818,1726505438305,-500.0,0.000137,2]
[338332819,1726505438314,-500.0,0.000137,2]
[338332820,1726505438324,-470.46,0.000137,2]
[338332821,1726505438333,-500.0,0.000137,2]
[338332822,1726505438342,-500.0,0.000137,2]
[338332823,1726505438352,-500.0,0.000137,2]
[338332824,1726505438361,-500.0,0.000137,2]
[338332825,1726505438370,-224.1,0.000137,2]
[338332826,1726505438380,-200.0,0.000139,5]
[338332827,1726505438390,-271.511909,0.00013998,2]
[338332828,1726505438400,-500.0,0.00014,5]
[338332829,1726505438409,-800.0,0.000141,5]
[338332830,1726505438418,-271.511909,0.00014173,2]
[338332831,1726505438428,-181.45,0.00014192,2]
[338332832,1726505438437,-1100.0,0.000142,5]
[338332833,1726505438447,-1400.0,0.000143,5]
[338332834,1726505438457,-271.511909,0.00014348,2]
[338332835,1726505438466,-1500.0,0.00014395,2]
[338332836,1726505438475,-200.0,0.000144,5]
[338332837,1726505438484,-1500.0,0.00014412,2]
[338332838,1726505438493,-150.0,0.00014427,2]
[338332839,1726505438505,-150.01,0.0001446,2]
[338332840,1726505438514,-1500.0,0.0001448,2]
[338332841,1726505438523,-418.6212812,0.00014485,2]
[338332842,1726505438532,-157.28,0.00014487,2]
[338332843,1726505438541,-200.0,0.000145,5]
[338332844,1726505438550,-150.0,0.00014502,2]
[338332845,1726505438560,-271.511909,0.00014523,2]
[338332846,1726505438569,-150.0,0.00014543,2]
[338332847,1726505438578,-150.0,0.00014545,2]
[338332848,1726505438587,-150.0,0.00014562,2]
[338332849,1726505438596,-1500.0,0.00014578,2]
[338332850,1726505438605,-500.0,0.00014582,2]
[338332851,1726505438614,-200.0,0.00014582,2]
[338332852,1726505438623,-150.0,0.00014586,2]
[338332853,1726505438632,-4418.8174391,0.000146,2]
[338332857,1726505439409,-547.7730609,0.000146,2]
[338332859,1726505439418,-153.89125267,0.000146,2]
[338332860,1726505439427,-5.45905337,0.000146,2]
[338332861,1726505439467,-2469.5472492,0.000146,2]
[338332862,1726505439476,-161.07729859,0.000146,2]
[338332863,1726505439484,-200.0,0.000146,5]
[338332864,1726505439493,-2475.00630248,0.00014633,2]
[338332865,1726505439503,-688.70076248,0.00014636,2]
[338332866,1726505439514,-811.29923752,0.00014636,2]
[338332867,1726505439523,-89.13746408,0.00014648,2]
[338332868,1726505439533,-681.65053592,0.00014648,2]
[338332869,1726505439543,-194.051,0.00014648,2]
[338332870,1726505439552,-2475.00630248,0.00014667,2]
[338332871,1726505439561,-153.89125265,0.00014675,2]
[338332872,1726505439569,-151.13,0.0001469,2]
[338332873,1726505439579,-150.0,0.00014694,2]
[338332874,1726505439587,-12232.3946313,0.00014694,2]
[338332875,1726505439597,-2880.43566551,0.00014694,2]
[338332876,1726505439611,-298.31412405,0.00014694,2]
[338332877,1726505439623,-1067.39875399,0.00014694,2]
[338332878,1726505439634,-387.72733961,0.00014694,2]
[338332879,1726505439645,-4905.37844259,0.00014694,2]
[338332880,1726505439656,-822.48165965,0.00014694,2]
[338332881,1726505439665,-299.57892857,0.00014694,2]
[338332882,1726505439677,-15607.50524251,0.00014694,2]
[338332883,1726505439690,-342.108,0.00014694,2]
[338332884,1726505439701,-1109.54057501,0.00014694,2]
[338332885,1726505439712,-786.00088253,0.00014694,2]
[338332886,1726505439723,-352.75909744,0.00014694,2]
[338332887,1726505439753,-36989.10762854,0.00014694,2]
[338332888,1726505439762,-1628.4717806,0.00014695,2]
[338332889,1726505439771,-2338.8630936,0.00014695,2]
[338332890,1726505439780,-271.511909,0.00014698,2]
[338332891,1726505439789,-341.47763238,0.00014699,2]
[338332892,1726505439798,-1001.7428,0.00014699,2]
[338332893,1726505439807,-638.0,0.000147,2]
[338332894,1726505439815,-101824.92424909,0.000147,2]
[338332895,1726505439826,-527.39556223,0.000147,2]
[338332896,1726505439841,-338.27757013,0.000147,2]
[338332897,1726505439851,-1391.73850551,0.000147,2]
[338332898,1726505439862,-2961.95,0.000147,2]
[338332984,1726505442479,-1136.44,0.000147,2]
[338332990,1726505443501,-511.149995,0.000147,2]
[338332994,1726505445565,-863.91000024,0.000147,2]
[338332995,1726505445674,-2904.5475,0.000147,2]
[338333004,1726505490757,248.43,0.00011847,2]
[338333006,1726505676959,950.0,0.00011847,2]
[338333007,1726505716402,197.0,0.00025,60]
[338333008,1726505740719,246.0,0.00026,60]
[338333009,1726505900546,1223.0,0.00026,60]
[338333010,1726505997645,244.57,0.00011755,2]
[338333011,1726506018328,3000.0,0.00013,5]
[338333012,1726506020790,2054.0,0.00025999,60]
[338333013,1726506030178,5533.0,0.00013,5]
[338333015,1726506188183,150.0,0.00026,60]
[338333016,1726506347759,2000.0,0.00025999,60]
[338333017,1726506370430,500.015809,0.00025999,60]
[338333020,1726506455680,500.0,0.00013,4]
[338333022,1726506511385,242.74,0.00011672,2]
[338333026,1726506563629,1170.0,0.00026,60]
[338333032,1726506610030,155.05,0.00010959,2]
[338333040,1726506631574,-163.37,0.0001336,2]
[338333041,1726506631583,-135.88245189,0.0001338,2]
[338333042,1726506631595,-1201.26614811,0.0001338,2]
[338333043,1726506631604,-250.0,0.0001348,2]
[338333044,1726506631613,-1500.0,0.00013491,2]
[338333045,1726506631624,-163.37,0.00013517,2]
[338333046,1726506631633,-1926.03,0.00013527,2]
[338333047,1726506631642,-469.74,0.0001359,2]
[338333048,1726506631651,-300.0,0.00013658,2]
[338333049,1726506631661,-1411.67,0.00013659,2]
[338333050,1726506631670,-530.26,0.00013669,2]
[338333051,1726506631680,-163.37,0.0001368,2]
[338333052,1726506631689,-163.37,0.0001369,2]
[338333053,1726506631698,-150.01,0.00013699,2]
[338333054,1726506631707,-500.0,0.000137,2]
[338333055,1726506631716,-500.0,0.000137,2]
[338333056,1726506631725,-500.0,0.000137,2]
[338333057,1726506631734,-500.0,0.000137,2]
[338333058,1726506631743,-500.0,0.000137,2]
[338333059,1726506631752,-320.69,0.000137,2]
[338333060,1726506631761,-500.0,0.000137,2]
[338333061,1726506631771,-500.0,0.000137,2]
[338333062,1726506631779,-500.0,0.000137,2]
[338333063,1726506631788,-500.0,0.000137,2]
[338333064,1726506631798,-327.83,0.000137,2]
[338333065,1726506631807,-169.64,0.00013763,2]
[338333066,1726506631816,-242.74,0.00013936,2]
[338333067,1726506631825,-150.490607,0.00013998,2]
[338333068,1726506631834,-500.0,0.00014,5]
[338333069,1726506631843,-137.62618182,0.00014,5]
[338333070,1726506631854,-362.37381818,0.00014,5]
[338333071,1726506631863,-500.0,0.00014,5]
[338333072,1726506631875,-500.0,0.00014,5]
[338333073,1726506631884,-150.0,0.00014487,2]
[338333074,1726506631893,-5863.0,0.00014487,2]
[338333075,1726506631902,-13483.0,0.00014487,2]
[338333076,1726506631911,-1146.0,0.00014487,2]
[338333077,1726506631921,-163.37,0.00014511,2]
[338333078,1726506631930,-1000.0,0.00014521,2]
[338333079,1726506631939,-1000.0,0.00014534,2]
[338333080,1726506631948,-1000.0,0.00014548,2]
[338333081,1726506631958,-903.98702644,0.00014549,2]
[338333082,1726506631967,-163.37,0.00014552,2]
[338333083,1726506631976,-150.0,0.00014553,2]
[338333084,1726506631985,-1000.0,0.00014562,2]
[338333085,1726506631994,-1000.0,0.00014575,2]
[338333086,1726506632003,-500.0,0.00014582,2]
[338333087,1726506632012,-200.0,0.00014582,2]
[338333088,1726506632021,-1000.0,0.00014589,2]
[338333089,1726506632031,-163.37,0.0001459,2]
[338333090,1726506632040,-400.8773,0.000146,2]
[338333091,1726506632049,-14230.3471,0.000146,2]
[338333092,1726506632059,-1759.4468,0.000146,2]
[338333093,1726506632068,-4888.497,0.000146,2]
[338333094,1726506632077,-191.59972562,0.000146,2]
[338333095,1726506632087,-183.43763983,0.000146,2]
[338333096,1726506632096,-6237.7233,0.000146,2]
[338333097,1726506632106,-172.529219,0.000146,2]
[338333098,1726506632116,-3258.43776548,0.000146,2]
[338333099,1726506632126,-1420.05753133,0.000146,2]
[338333100,1726506632135,-207.18950648,0.000146,2]
[338333101,1726506632145,-1000.0,0.00014603,2]
[338333102,1726506632154,-1000.0,0.00014616,2]
[338333103,1726506632164,-493.19378236,0.00014621,2]
[338333104,1726506632173,-1000.0,0.0001463,2]
[338333105,1726506632183,-191.59972559,0.00014643,2]
[338333106,1726506632192,-1000.0,0.00014644,2]
[338333107,1726506632201,-1000.0,0.00014658,2]
[338333108,1726506632211,-653.616,0.00014663,2]
[338333109,1726506632220,-155.241,0.00014663,2]
[338333110,1726506632230,-1000.0,0.00014671,2]
[338333111,1726506632240,-494.44794332,0.00014673,2]
[338333112,1726506632249,-150.01,0.00014677,2]
[338333113,1726506632259,-1000.0,0.00014685,2]
[338333114,1726506632268,-191.59972559,0.00014686,2]
[338333115,1726506632277,-1166.1445967,0.0001469,3]
[338333116,1726506632286,-466.45783868,0.0001469,3]
[338333117,1726506632296,-152.09,0.0001469,2]
[338333118,1726506632305,-152.09,0.0001469,2]
[338333119,1726506632315,-152.09,0.0001469,2]
[338333120,1726506632324,-152.09,0.0001469,2]
[338333121,1726506632525,-152.09,0.0001469,2]
[338333122,1726506632535,-152.09,0.0001469,2]
[338333123,1726506632544,-152.09,0.0001469,2]
[338333124,1726506632554,-152.09,0.0001469,2]
[338333125,1726506632566,-152.09,0.0001469,2]
[338333126,1726506632576,-152.09,0.0001469,2]
[338333127,1726506632585,-202.05770887,0.0001469,2]
[338333128,1726506632594,-152.09,0.0001469,2]
[338333129,1726506632603,-152.09,0.0001469,2]
[338333130,1726506632613,-152.09,0.0001469,2]
[338333131,1726506632624,-152.09,0.0001469,2]
[338333132,1726506632633,-202.05770887,0.0001469,2]
[338333133,1726506632642,-34396.2701007,0.00014695,2]
[338333134,1726506632652,-4747.91013646,0.00014695,2]
[338333135,1726506632664,-705.88721926,0.00014695,2]
[338333136,1726506632675,-1500.0,0.00014695,2]
[338333137,1726506632687,-891.15718249,0.00014695,2]
[338333138,1726506632698,-37971.62666659,0.00014695,2]
[338333139,1726506632707,-1578.070503,0.00014695,2]
[338333140,1726506632717,-1000.0,0.00014699,2]
[338333141,1726506632726,-166.25384758,0.00014699,2]
[338333142,1726506632736,-5172.74662935,0.00014699,2]
[338333143,1726506632745,-150.51745403,0.00014699,2]
[338333144,1726506632755,-583.0,0.000147,2]
[338333145,1726506632764,-6998.23813866,0.000147,2]
[338333146,1726506632786,-1012.2128544,0.000147,2]
[338333154,1726506637771,-374.20220312,0.00014487,2]
[338333155,1726506637926,-343.07194211,0.00014487,2]
[338333156,1726506637938,-362.72585477,0.00014487,2]
[338333157,1726506637948,-1.82703347,0.00014595,2]
[338333158,1726506637959,-1231.76374629,0.00014595,2]
[338333159,1726506637970,-498.91363203,0.00014595,2]
[338333160,1726506637980,-1732.50441173,0.00014629,2]
[338333161,1726506637990,-238.35447389,0.000147,2]
[338333163,1726506638001,-1214.52265281,0.000147,2]
[338333336,1726506639632,-1331.33885768,0.000147,2]
[338333338,1726506639643,-1160.0445085,0.000147,2]
[338333354,1726506639801,-542.36115488,0.000147,2]
[338333355,1726506639812,-834.30484756,0.000147,2]
[338333356,1726506639858,-40435.81690446,0.000147,2]
[338333446,1726506642649,-1732.50441173,0.00014663,2]
[338333447,1726506642659,-7747.61206146,0.000147,2]
[338333448,1726506642670,-22982.3562768,0.000147,2]
[338333449,1726506642681,-1363.125,0.000147,2]
[338333459,1726506643456,-28350.0,0.000147,2]
[338333460,1726506643467,-154424.54086009,0.000147,2]
[338333461,1726506643476,-525.0,0.000147,2]
[338333462,1726506643487,-2274691.33394709,0.000147,2]
[338333463,1726506643500,-1667.5,0.000147,2]
[338333464,1726506643510,-2894.76552035,0.000147,2]
[338333465,1726506643521,-110772.00655343,0.000147,2]
[338333466,1726506643532,-6136.255125,0.000147,2]
[338333467,1726506643543,-116260.0,0.000147,2]
[338333468,1726506643554,-19893.47507214,0.000147,2]
[338333469,1726506643565,-489.04,0.000147,3]
[338333470,1726506643575,-1000.0,0.000147,2]
[338333471,1726506643584,-1000.0,0.000147,2]
[338333472,1726506643592,-1000.0,0.000147,2]
[338333473,1726506643601,-1000.0,0.000147,2]
[338333474,1726506643610,-1000.0,0.000147,2]
[338333475,1726506643619,-1000.0,0.000147,2]
[338333476,1726506643631,-1000.0,0.000147,2]
[338333477,1726506643640,-1000.0,0.000147,2]
[338333478,1726506643648,-1000.0,0.000147,2]
[338333479,1726506643657,-1000.0,0.000147,2]
[338333480,1726506643666,-189.51948389,0.000147,2]
[338333481,1726506643675,-1363.72,0.000147,2]
[338333482,1726506643684,-7592.16,0.000147,2]
[338333483,1726506643693,-765.18,0.000147,2]
[338333484,1726506643702,-2000.0,0.000147,2]
[338333485,1726506643711,-200.0,0.000147,2]
[338333486,1726506643721,-151.0,0.000147,2]
[338333487,1726506643730,-151.0,0.000147,2]
[338333488,1726506643739,-151.0,0.000147,2]
[338333489,1726506643748,-151.0,0.000147,2]
[338333490,1726506643758,-151.0,0.000147,2]
[338333491,1726506643767,-151.0,0.000147,2]
[338333492,1726506643776,-151.0,0.000147,2]
[338333493,1726506643785,-183.4376398,0.000147,2]
[338333494,1726506643794,-151.0,0.000147,2]
[338333495,1726506643803,-500.0,0.000147,5]
[338333496,1726506643812,-500.0,0.000147,5]
[338333497,1726506643821,-151.0,0.000147,2]
[338333498,1726506643830,-151.0,0.000147,2]
[338333499,1726506643839,-500.0,0.000147,5]
[338333500,1726506643848,-500.0,0.000147,5]
[338333501,1726506643858,-151.0,0.000147,2]
[338333502,1726506643867,-151.0,0.000147,2]
[338333503,1726506643880,-151.0,0.000147,2]
[338333504,1726506643890,-483.723022,0.000147,2]
[338333505,1726506643899,-483.723022,0.000147,2]
[338333506,1726506643908,-151.0,0.000147,2]
[338333507,1726506643917,-151.0,0.000147,2]
[338333508,1726506643925,-151.0,0.000147,2]
[338333509,1726506643935,-151.0,0.000147,2]
[338333510,1726506643943,-151.0,0.000147,2]
[338333511,1726506643952,-151.0,0.000147,2]
[338333512,1726506643961,-151.0,0.000147,2]
[338333513,1726506643971,-151.0,0.000147,2]
[338333514,1726506643980,-401.659604,0.000147,2]
[338333515,1726506643990,-479.0,0.000147,2]
[338333516,1726506643999,-151.0,0.000147,2]
[338333517,1726506644009,-401.659604,0.000147,2]
[338333518,1726506644019,-151.0,0.000147,2]
[338333519,1726506644028,-151.0,0.000147,2]
[338333520,1726506644037,-151.0,0.000147,2]
[338333521,1726506644047,-183.33172725,0.000147,2]
[338333522,1726506644056,-15662.32827417,0.000147,2]
[338333523,1726506644068,-151.0,0.000147,2]
[338333524,1726506644079,-151.0,0.000147,2]
[338333525,1726506644090,-10932.6379837,0.00014702,2]
[338333526,1726506644102,-1000.0,0.00014712,2]
[338333527,1726506644113,-160.55,0.00014713,2]
[338333528,1726506644127,-1000.0,0.00014726,2]
[338333529,1726506644137,-191.59972559,0.00014729,2]
[338333530,1726506644149,-1000.0,0.0001474,2]
[338333531,1726506644160,-3258.43776547,0.0001475,2]
[338333532,1726506644171,-1000.0,0.00014753,2]
[338333533,1726506644180,-150.0,0.00014757,2]
[338333534,1726506644190,-1000.0,0.00014767,2]
[338333535,1726506644202,-191.59972559,0.00014771,2]
[338333536,1726506644212,-42546.2173504,0.0001478,2]
[338333549,1726506645601,-151.0,0.000147,2]
[338333551,1726506645612,-23025.54969251,0.0001478,2]
[338333554,1726506645624,-151.0,0.0001478,2]
[338333556,1726506645634,-151.0,0.0001478,2]
[338333558,1726506645644,-151.0,0.0001478,2]
[338333560,1726506645655,-154.159282,0.0001478,2]
[338333562,1726506645665,-151.0,0.0001478,2]
[338333564,1726506645676,-151.0,0.0001478,2]
[338333566,1726506645686,-151.0,0.0001478,2]
[338333568,1726506645696,-151.0,0.0001478,2]
[338333570,1726506645707,-151.0,0.0001478,2]
[338333571,1726506645717,-151.0,0.0001478,2]
[338333572,1726506645728,-151.0,0.0001478,2]
[338333573,1726506645739,-151.0,0.0001478,2]
[338333574,1726506645750,-151.0,0.0001478,2]
[338333575,1726506645761,-151.0,0.0001478,2]
[338333576,1726506645771,-151.0,0.0001478,2]
[338333577,1726506645781,-151.0,0.0001478,2]
[338333578,1726506645792,-151.0,0.0001478,2]
[338333579,1726506645803,-151.0,0.0001478,2]
[338333580,1726506645813,-151.0,0.0001478,2]
[338333581,1726506645824,-151.0,0.0001478,2]
[338333582,1726506645834,-339.430804,0.0001478,2]
[338333583,1726506645844,-339.430804,0.0001478,2]
[338333584,1726506645854,-151.0,0.0001478,2]
[338333585,1726506645865,-209.925752,0.0001478,2]
[338333586,1726506645878,-209.925752,0.0001478,2]
[338333587,1726506645889,-151.0,0.0001478,2]
[338333588,1726506645899,-151.0,0.0001478,2]
[338333589,1726506645910,-151.0,0.0001478,2]
[338333590,1726506645920,-151.0,0.0001478,2]
[338333591,1726506645930,-151.0,0.0001478,2]
[338333592,1726506645941,-151.0,0.0001478,2]
[338333593,1726506645951,-151.0,0.0001478,2]
[338333594,1726506645960,-151.0,0.0001478,2]
[338333595,1726506645970,-151.0,0.0001478,2]
[338333596,1726506645980,-151.0,0.0001478,2]
[338333597,1726506645990,-151.0,0.0001478,2]
[338333598,1726506645999,-198.45545,0.0001478,2]
[338333599,1726506646010,-198.45545,0.0001478,2]
[338333600,1726506646021,-151.0,0.0001478,2]
[338333601,1726506646030,-253.503607,0.0001478,2]
[338333602,1726506646041,-151.0,0.0001478,2]
[338333603,1726506646051,-253.503607,0.0001478,2]
[338333604,1726506646061,-158.476227,0.0001478,2]
[338333605,1726506646072,-158.476227,0.0001478,2]
[338333606,1726506646083,-151.0,0.0001478,2]
[338333607,1726506646093,-194.064424,0.0001478,2]
[338333608,1726506646104,-151.0,0.0001478,2]
[338333609,1726506646115,-151.0,0.0001478,2]
[338333610,1726506646127,-151.0,0.0001478,2]
[338333611,1726506646137,-483.723022,0.0001478,2]
[338333612,1726506646149,-483.723022,0.0001478,2]
[338333613,1726506646159,-151.0,0.0001478,2]
[338333614,1726506646171,-151.0,0.0001478,2]
[338333615,1726506646182,-151.0,0.0001478,2]
[338333616,1726506646193,-151.0,0.0001478,2]
[338333617,1726506646204,-151.0,0.0001478,2]
[338333618,1726506646215,-151.0,0.0001478,2]
[338333619,1726506646225,-151.0,0.0001478,2]
[338333620,1726506646235,-401.659604,0.0001478,2]
[338333621,1726506646245,-151.0,0.0001478,2]
[338333622,1726506646254,-401.659604,0.0001478,2]
[338333623,1726506646264,-151.0,0.0001478,2]
[338333624,1726506646273,-151.0,0.0001478,2]
[338333625,1726506646283,-151.0,0.0001478,2]
[338333626,1726506646292,-151.0,0.0001478,2]
[338333627,1726506646302,-151.0,0.0001478,2]
[338333628,1726506646312,-1000.0,0.00014781,2]
[338333629,1726506646321,-18608.37523031,0.00014784,2]
[338333630,1726506646331,-8500.0,0.00014785,2]
[338333631,1726506646342,-1225.96271825,0.00014787,2]
[338333632,1726506646352,-8500.0,0.00014794,2]
[338333633,1726506646364,-5243.79123493,0.00014794,2]
[338333634,1726506646377,-1165.06625203,0.00014795,2]
[338333635,1726506646387,-953.35823399,0.000148,2]
[338333636,1726506646400,-3352.26928,0.000148,2]
[338333637,1726506646413,-1156.24,0.000148,2]
[338333638,1726506646424,-738.13248601,0.000148,2]
[338333639,1726506646433,-183.4376398,0.000148,2]
[338333640,1726506646443,-191.59972559,0.00014814,2]
[338333641,1726506646452,-151.084,0.0001482,2]
[338333642,1726506646463,-297.134,0.0001482,2]
[338333643,1726506646474,-250.0,0.0001482,2]
[338333644,1726506646487,-229.876,0.0001482,2]
[338333645,1726506646502,-262.338,0.0001482,2]
[338333646,1726506646512,-170.565,0.0001482,2]
[338333647,1726506646524,-150.675,0.0001482,2]
[338333648,1726506646535,-151.0,0.0001482,2]
[338333649,1726506646545,-151.0,0.0001482,2]
[338333650,1726506646555,-151.0,0.0001482,2]
[338333651,1726506646566,-151.0,0.0001482,2]
[338333652,1726506646575,-151.0,0.0001482,2]
[338333653,1726506646585,-151.0,0.0001482,2]
[338333654,1726506646595,-151.0,0.0001482,2]
[338333655,1726506646605,-151.0,0.0001482,2]
[338333656,1726506646614,-151.0,0.0001482,2]
[338333657,1726506646624,-151.0,0.0001482,2]
[338333658,1726506646634,-151.0,0.0001482,2]
[338333659,1726506646644,-1262.0,0.0001482,2]
[338333660,1726506646654,-447.0,0.0001482,2]
[338333661,1726506646665,-1259.50824642,0.0001482,2]
[338333662,1726506646677,-288.49175358,0.0001482,2]
[338333663,1726506646686,-259.01824642,0.0001482,2]
[338333664,1726506646698,-364.98175358,0.0001482,2]
[338333665,1726506646708,-236.10531216,0.0001482,2]
[338333666,1726506646720,-695.89468784,0.0001482,2]
[338333667,1726506646729,-171.77866249,0.0001482,2]
[338333668,1726506646741,-638.22133751,0.0001482,2]
[338333669,1726506646751,-150.0,0.0001482,2]
[338333670,1726506646761,-558.0,0.0001482,2]
[338333671,1726506646770,-151.0,0.0001482,2]
[338333672,1726506646780,-151.0,0.0001482,2]
[338333673,1726506646789,-416.49130254,0.0001482,2]
[338333674,1726506646801,-611.81478294,0.0001482,2]
[338333677,1726506936568,2318.97623286,0.00026,120]
[338333678,1726506940439,2273.0,0.00026,60]
[338333679,1726507012528,228.87,0.00011391,2]
[338333682,1726507234999,153.45,0.00010959,2]
[338333684,1726507370343,10000.0,0.00026,60]
[338333688,1726507428372,9308.47402338,0.000131,2]
[338333689,1726507496651,217.42,0.00011222,2]
[338333690,1726507508325,5932.86871989,0.00013,2]
[338333691,1726507508368,149666.22480923,0.00013,2]
[338333692,1726507559021,1073.301799,0.00012976,2]
[338333694,1726507628620,562.43,0.00012933,2]
[338333697,1726507675949,552.70015369,0.00012944,2]
[338333698,1726507682389,34165.90735358,0.00013,2]
[338334005,1726507831714,-233.89,0.00013042,2]
[338334008,1726507831724,-250.0,0.00013044,2]
[338334010,1726507831734,-155.36,0.00013059,2]
[338334012,1726507831743,-301.22405097,0.00013065,2]
[338334014,1726507831754,-1709.87048133,0.00013065,2]
[338334016,1726507831766,-9402.6654677,0.00013065,2]
[338334018,1726507831777,-155.36,0.0001307,2]
[338334020,1726507831787,-24259.84437134,0.00013081,2]
[338334022,1726507831796,-155.36,0.00013081,2]
[338334024,1726507831804,-250.0,0.00013089,2]
[338334026,1726507831814,-155.36,0.00013092,2]
[338334028,1726507831824,-155.36,0.00013103,2]
[338334030,1726507831833,-155.36,0.00013114,2]
[338334032,1726507831842,-155.36,0.00013125,2]
[338334034,1726507831853,-200.0,0.00013244,2]
[338334036,1726507831862,-150.0,0.00013253,2]
[338334038,1726507831870,-300.0,0.00013271,2]
[338334040,1726507831879,-1869.15,0.00013272,2]
[338334042,1726507831888,-1500.0,0.00013281,2]
[338334043,1726507831897,-169.64,0.00013308,2]
[338334044,1726507831906,-499.99,0.00013308,2]
[338334045,1726507831914,-150.0,0.00013369,2]
[338334046,1726507831923,-2372.69,0.0001337,2]
[338334047,1726507831932,-4232.43,0.0001337,2]
[338334048,1726507831941,-217.42,0.00013486,2]
[338334049,1726507831950,-375.8,0.00013558,2]
[338334050,1726507831959,-624.2,0.0001365,2]
[338334051,1726507831968,-150.01,0.00013699,2]
[338334052,1726507831977,-2462.79192693,0.00013699,2]
[338334053,1726507831986,-500.0,0.000137,2]
[338334054,1726507831995,-500.0,0.000137,2]
[338334055,1726507832004,-500.0,0.000137,2]
[338334056,1726507832013,-500.0,0.000137,2]
[338334057,1726507832022,-500.0,0.000137,2]
[338334058,1726507832032,-500.0,0.000137,2]
[338334059,1726507832041,-500.0,0.000137,2]
[338334060,1726507832050,-500.0,0.000137,2]
[338334061,1726507832059,-500.0,0.000137,2]
[338334062,1726507832068,-500.0,0.000137,2]
[338334063,1726507832077,-500.0,0.000137,2]
[338334064,1726507832085,-500.0,0.000137,2]
[338334065,1726507832094,-500.0,0.000137,2]
[338334066,1726507832103,-500.0,0.000137,2]
[338334067,1726507832112,-500.0,0.000137,2]
[338334068,1726507832121,-500.0,0.000137,2]
[338334069,1726507832130,-500.0,0.000137,2]
[338334070,1726507832139,-500.0,0.000137,2]
[338334071,1726507832148,-500.0,0.000137,2]
[338334072,1726507832157,-500.0,0.000137,2]
[338334073,1726507832167,-500.0,0.000137,2]
[338334074,1726507832176,-500.0,0.000137,2]
[338334075,1726507832185,-500.0,0.000137,2]
[338334076,1726507832194,-500.0,0.000137,2]
[338334077,1726507832204,-635.75,0.000137,2]
[338334078,1726507832213,-500.0,0.000137,2]
[338334079,1726507832222,-500.0,0.000137,2]
[338334080,1726507832232,-500.0,0.000137,2]
[338334081,1726507832241,-403.88,0.000137,2]